Cogmind - Beta 9.4 @@@ ROGUE MODE // 2020.03.21 @ 01:26:17 Player: Trione Result: Destroyed by NK-0LA with NK-0LA's Tesla Doomcannon Performance ------------- Evolutions (1) 500 Regions Visited (6) 1200 Robots Destroyed (78) 390 Value Destroyed (1516) 1516 Prototype IDs (5) 100 Alien Tech Used (0) 0 Bonus (-223) -223 TOTAL SCORE: 3483 Bonus ------- High Alert Combat Kills 19 Follower Combat Kills 60 Friendly Fire -302 Cogmind --------- Core Integrity 0/400 Matter 0/300 Energy 67/100 System Corruption 18% Temperature Cool (0) Movement Walking (210) Ox3 Location -8/Mines Parts ------- > --- POWER (1) -------- (None) > --- PROPULSION (2) --- Advanced Myomer Leg > --- UTILITY (4) ------ Humpback > --- WEAPON (2) ------- 8R-AWN's Boregun 8R-AWN's Boregun > --- INVENTORY (24) --- Large Storage Unit Large Storage Unit Large Storage Unit High-capacity Battery (400) Gravity Neutralizing Apparatus Gravity Neutralizing Apparatus Experimental Targeting Computer Advanced Weapon Cycler Light Armor Plating AS-neutralizer No. 17b Advanced Beam Cannon Light Cannon Rocket Launcher Mini Grenade Launcher Mining Claw Mining Claw Peak State ------------ > --- POWER ------------ (None) > --- PROPULSION ------- Advanced Myomer Leg Wheel > --- UTILITY ---------- Humpback 8R-AWN's Armor/EX > --- WEAPON ----------- Mining Claw Katana > --- INVENTORY -------- Wheel Large Storage Unit Large Storage Unit Large Storage Unit Humpback High-capacity Battery Gravity Neutralizing Apparatus Gravity Neutralizing Apparatus Experimental Targeting Computer Advanced Weapon Cycler Light Armor Plating AS-neutralizer No. 17b Advanced Beam Cannon 8R-AWN's Boregun 8R-AWN's Boregun Light Cannon Rocket Launcher Mini Grenade Launcher Mining Claw [Rating: 41] Favorites ----------- Power Improved Ion Engine Engine Improved Ion Engine Propulsion Light Treads Treads Light Treads Leg Advanced Myomer Leg Wheel Wheel Utility Large Storage Unit Storage Large Storage Unit Processor Melee Analysis Suite Protection Light Armor Plating Weapon Advanced Beam Cannon Energy Gun Small Laser Energy Cannon Advanced Beam Cannon Ballistic Gun Shotgun Ballistic Cannon Light Cannon Launcher Mini Grenade Launcher Special Weapon Mining Laser Slashing Weapon Mining Claw Build | -11 -10 -10 -9 -9 -9 -8 ------- Run | Scr Mat Min Mat Min Exi Min Slots Evolved 2 | . . . 2 . . . Power . | . . . . . . . Propulsion . | . . . . . . . Utility 2 | . . . 2 . . . Weapon . | . . . . . . . Parts Attached 94 | 7 11 . 27 14 26 9 Power 6 | 1 . . 2 . 2 1 Engine 6 | 1 . . 2 . 2 1 Core . | . . . . . . . Reactor . | . . . . . . . Propulsion 32 | 2 4 . 12 6 5 3 Treads 16 | . 2 . 7 2 5 . Leg 1 | . . . . . . 1 Wheel 15 | 2 2 . 5 4 . 2 Hover . | . . . . . . . Flight . | . . . . . . . Utility 17 | 2 2 . 2 1 8 2 Device . | . . . . . . . Storage 10 | 2 2 . 1 1 3 1 Processor 1 | . . . . . 1 . Hackware . | . . . . . . . Protection 6 | . . . 1 . 4 1 Artifact . | . . . . . . . Weapon 39 | 2 5 . 11 7 11 3 Energy Gun 6 | 1 2 . 1 . 2 . Energy Cannon 9 | . . . 4 4 1 . Ballistic Gun 8 | 1 2 . 2 . 1 2 Ballistic Cannon 2 | . . . 2 . . . Launcher 6 | . . . 2 2 2 . Special Weapon 1 | . 1 . . . . . Impact Weapon . | . . . . . . . Slashing Weapon 7 | . . . . 1 5 1 Piercing Weapon . | . . . . . . . Special Melee Weapon . | . . . . . . . Unidentified Prototypes 5 | . . . 2 . 1 2 Parts Lost 24 | . 6 . 2 . 6 10 Power 4 | . 1 . . . 1 2 Propulsion 9 | . 1 . 2 . 2 4 Utility 4 | . . . . . 1 3 Weapon 7 | . 4 . . . 2 1 Highest Loss Streak 10 | . 3 . 1 . 5 10 Average Slot Usage (%) 91 | . 92 85 96 100 86 78 Engine 9 | . 8 . 10 11 11 7 Treads 12 | . 17 14 9 12 13 13 Wheel 10 | . 10 14 12 9 8 2 Storage 27 | . 28 28 31 38 20 11 Processor 1 | . . . . . 5 . Protection 6 | . . . 10 5 6 16 Energy Gun 2 | . 7 14 . . . . Energy Cannon 8 | . . . 11 17 9 4 Ballistic Gun 6 | . 17 14 6 . . 1 Ballistic Cannon 1 | . . . 3 . . . Slashing Weapon 3 | . . . . 3 10 15 Naked Turns . | . . . . . . . Heaviest Build 127 | 17 41 34 66 79 127 99 Greatest Support 40 | 20 40 10 40 40 40 40 Greatest Overweight (x) 6 | . 3 3 6 3 6 2 Average Overweight (x) 2 | . . 3 1 2 3 2 Largest Inventory Capacity 44 | 8 16 16 22 28 36 44 Average Capacity 21 | 5 13 16 21 25 27 24 Most Carried 35 | 5 10 10 22 24 35 24 Average Carried 17 | 2 6 10 19 22 23 22 Final Capacity 28 | 8 16 16 22 28 24 24 Final Carried 24 | 5 10 10 22 24 24 16 Class Distribution -------------------- 57% | Hauler-Mutant 32% | Mutant 9% | Scavenger-Mutant Dominant Class ---------------- Mutant | -10/Materials Mutant | -10/Mines Hauler-Mutant | -9/Materials Hauler-Mutant | -9/Mines Hauler-Mutant | -9/Exiles Scavenger-Mutant | -8/Mines Resources | -11 -10 -10 -9 -9 -9 -8 ----------- Run | Scr Mat Min Mat Min Exi Min Matter Collected 1459 | 256 380 4 601 98 120 . Remotely . | . . . . . . . Salvage Created 2526 | 71 812 48 1359 109 127 . Parts 167 | 3 59 9 82 5 9 . Haulers Intercepted 5 | . 1 . 4 . . . Recyclers Shooed 2 | . 1 . 1 . . . Parts Field Recycled . | . . . . . . . Retrieved Matter . | . . . . . . . Parts Self-Destructed . | . . . . . . . Prevented . | . . . . . . . Kills | -11 -10 -10 -9 -9 -9 -8 ------- Run | Scr Mat Min Mat Min Exi Min Combat Hostiles Destroyed 54 | . 17 3 24 3 7 . Melee 3 | . 1 . . . 2 . Guns 29 | . 16 3 10 . . . Cannons 11 | . . . 8 3 . . AOE 11 | . . . 6 . 5 . Classes Destroyed 11 | 1 6 . 2 1 1 . Worker 2 | . 1 . 1 . . . Hauler 5 | . 1 . 4 . . . Recycler 8 | 1 3 . 4 . . . Operator 1 | . 1 . . . . . Watcher 7 | . 2 . 5 . . . Swarmer 18 | . 6 3 9 . . . Grunt 21 | . 11 . 9 1 . . Brawler 2 | . . . 1 1 . . Duelist 1 | . . . . 1 . . Sentry 5 | . . . 5 . . . Assembled 7 | . . . . . 7 . Best Kill Streak 8 | 1 8 3 4 2 6 . Combat Bots Only 6 | . 5 3 3 2 6 . Max Kills in Single Turn 4 | 1 2 1 2 1 4 . Gunslinging 1 | . 1 . . . . . Exploded 4 | . . . 2 . 4 . Melee 1 | . 1 . . . 1 . Uniques/NPCs Destroyed 1 | . . . . . 1 . 8R-AWN (-9/Exiles) Combat | -11 -10 -10 -9 -9 -9 -8 -------- Run | Scr Mat Min Mat Min Exi Min Damage Taken 4521 | . 861 44 450 56 1299 1811 Core 608 | . 188 15 60 11 139 195 Absorbed by Shields . | . . . . . . . Core Remaining (%) 59 | 100 . 18 . . . . Volleys Fired 177 | 7 64 4 71 7 22 2 Largest 2 | 2 2 2 2 2 2 2 Hottest 136 | 60 120 60 136 136 90 68 Shots Fired 320 | 8 124 8 137 14 26 3 Gun 214 | 8 117 8 58 . 21 2 Cannon 86 | . . . 75 10 . 1 Launcher 13 | . . . 4 4 5 . Special 7 | . 7 . . . . . Kinetic 184 | 7 97 4 74 . . 2 Thermal 89 | . 15 4 59 10 . 1 Explosive 13 | . . . 4 4 5 . Electromagnetic 34 | 1 12 . . . 21 . Robot Hit Streak 11 | 7 11 4 9 5 9 11 Robot Miss Streak 6 | 1 3 3 6 1 3 . Penetration Max . | . . . . . . . Secondary Targets 6 | . 4 2 . . . . Max Gunslinging Chain 1 | . 1 1 . . . . Shots Hit Robots 248 | 7 82 2 86 8 45 18 Core Hits 122 | 2 40 3 52 5 20 . Critical Hits 10 | . 1 . 7 . . 2 Critical Kills 3 | . 1 . 2 . . . Critical Parts Destroyed 5 | . . . 4 . . 1 Melee Attacks 59 | . . . . 7 28 24 Impact . | . . . . . . . Slashing 59 | . . . . 7 28 24 Piercing . | . . . . . . . Sneak Attacks . | . . . . . . . Combat Hostiles . | . . . . . . . Follow-up Attacks 4 | . . . . . 3 1 Damage Inflicted 5315 | 71 1046 32 1843 420 1380 523 Guns 1601 | 71 939 32 507 . 12 40 Cannons 1050 | . . . 888 162 . . Explosions 1289 | . 25 . 436 258 570 . Melee 1281 | . . . . . 798 483 Ramming 22 | . 10 . 12 . . . Kinetic 1502 | 71 730 . 661 . . 40 Thermal 1077 | . 149 32 734 162 . . Explosive 1264 | . . . 436 258 570 . Electromagnetic 169 | . 157 . . . 12 . Impact . | . . . . . . . Slashing 1281 | . . . . . 798 483 Piercing . | . . . . . . . Highest Corruption 18 | . . . . . . 18 Average Corruption 7 | . . . . . . 7 Corruption Purged . | . . . . . . . Effects 2 | . . . . . . 2 Matter Fused 1 | . . . . . . 1 Targeting Errors 1 | . . . . . . 1 Overload Shots . | . . . . . . . Overflow Damage 94 | . . . 39 6 42 7 Projectiles . | . . . . . . . Explosions 67 | . . . 39 6 22 . Melee 27 | . . . . . 20 7 Knockbacks 2 | . 1 . 1 . . . Impact 1 | . 1 . . . . . Kinetic 1 | . . . 1 . . . Secondary . | . . . . . . . Self-Inflicted Damage 10 | . . . 10 . . . Shots 1 | . . . 1 . . . Rammed 1 | . . . 1 . . . Targets Rammed 2 | . 1 . 1 . . . Kicked . | . . . . . . . Crushed 1 | . 1 . . . . . Highest Temperature 501 | . 162 10 501 207 238 36 Average Temperature 85 | . 31 7 99 84 138 21 Received Heat Transfer 564 | . 354 9 171 18 . 12 Effects 8 | . . . 8 . . . Shutdowns 1 | . . . 1 . . . Interference 2 | . . . 2 . . . Damage (major) 5 | . . . 5 . . . Siege Activations . | . . . . . . . Robots Corrupted . | . . . . . . . Combat Hostiles . | . . . . . . . Parts Fried . | . . . . . . . Impact Corruptions . | . . . . . . . Robots Melted . | . . . . . . . Combat Hostiles . | . . . . . . . Parts Melted 1 | . . . . 1 . . Heat Transferred 2028 | . 325 75 1332 296 . . Parts Sabotaged . | . . . . . . . Parts Stolen . | . . . . . . . Parts Stripped . | . . . . . . . Power Chain Reactions 1 | . 1 . . . . . Missiles Intercepted . | . . . . . . . Alert | -11 -10 -10 -9 -9 -9 -8 ------- Run | Scr Mat Min Mat Min Exi Min Peak Influence 508 | 5 347 180 508 245 . 3 Average Influence 216 | 1 173 126 287 203 . 1 Maximum Alert Level 2 | . 1 . 2 1 . . Low Security (%) 49 | 100 64 100 26 42 . 100 Level 1 35 | . 35 . 41 57 . . Level 2 15 | . . . 32 . . . Level 3 . | . . . . . . . Level 4 . | . . . . . . . Level 5 . | . . . . . . . High Security . | . . . . . . . Max Security . | . . . . . . . Squads Dispatched 5 | . 3 . 2 . . . Investigation 2 | . 2 . . . . . Extermination . | . . . . . . . Reinforcement 3 | . 1 . 2 . . . Assault . | . . . . . . . Garrison . | . . . . . . . Intercept . | . . . . . . . Construction Impeded . | . . . . . . . Haulers Reinforced . | . . . . . . . Stealth | -11 -10 -10 -9 -9 -9 -8 --------- Run | Scr Mat Min Mat Min Exi Min Distress Signals 4 | . 2 . 2 . . . Communications Jammed . | . . . . . . . Distress Signals . | . . . . . . . Times Spotted 91 | . 27 5 45 6 7 1 Peak Tracking Total 8 | . 4 3 7 2 8 1 Tactical Retreats 4 | . 1 . 1 2 . . Traps | -11 -10 -10 -9 -9 -9 -8 ------- Run | Scr Mat Min Mat Min Exi Min Traps Triggered 1 | . 1 . . . . . Indirectly . | . . . . . . . Trap Hack Attempts . | . . . . . . . Triggered . | . . . . . . . Disarmed . | . . . . . . . Reprogrammed . | . . . . . . . Reused . | . . . . . . . Traps Extracted . | . . . . . . . Installed . | . . . . . . . Triggered . | . . . . . . . Machines | -11 -10 -10 -9 -9 -9 -8 ---------- Run | Scr Mat Min Mat Min Exi Min Machines Disabled 8 | . 2 . 3 . 3 . Max in Single Turn 2 | . 2 . 1 . 2 . Machines Sabotaged . | . . . . . . . Garrisons Compromised . | . . . . . . . Overloaded Fab Kills . | . . . . . . . Fab Network Shutdowns . | . . . . . . . Hacking | -11 -10 -10 -9 -9 -9 -8 --------- Run | Scr Mat Min Mat Min Exi Min Machines Accessed 11 | . 3 . 7 . 1 . Terminals 8 | . 2 . 6 . . . Fabricators . | . . . . . . . Repair Stations . | . . . . . . . Recycling Units 2 | . 1 . 1 . . . Scanalyzers . | . . . . . . . Garrison Access . | . . . . . . . Total Hacks 19 | . 4 . 14 . 1 . Successful 13 | . 2 . 10 . 1 . Failed 6 | . 2 . 4 . . . Catastrophic . | . . . . . . . Database Lockouts . | . . . . . . . Manual 13 | . 2 . 11 . . . Terminals 15 | . 2 . 13 . . . Fabricators . | . . . . . . . Repair Stations . | . . . . . . . Recycling Units 3 | . 2 . 1 . . . Scanalyzers . | . . . . . . . Garrison Access . | . . . . . . . Terminal Hacks 5 | . . . 4 . 1 . Record 2 | . . . 1 . 1 . Robot Analysis 1 | . . . 1 . . . Zone Layout 2 | . . . 2 . . . Fabricator Hacks . | . . . . . . . Repair Station Hacks . | . . . . . . . Recycling Unit Hacks 1 | . . . 1 . . . Retrieve Components 1 | . . . 1 . . . Scanalyzer . | . . . . . . . Garrison Access Hacks . | . . . . . . . Unauthorized Hacks 16 | . 4 . 12 . . . Terminals 7 | . 2 . 5 . . . Track 3 | . 1 . 2 . . . Botnet 4 | . 1 . 3 . . . Fabricators . | . . . . . . . Repair Stations . | . . . . . . . Recycling Units . | . . . . . . . Scanalyzers . | . . . . . . . Garrison Access . | . . . . . . . Data Cores Recovered . | . . . . . . . Used . | . . . . . . . Hacking Detections 8 | . 2 . 6 . . . Full Trace Events 1 | . 1 . . . . . Feedback Events . | . . . . . . . Feedback Blocked . | . . . . . . . Robot Schematics Acquired . | . . . . . . . Robots Built . | . . . . . . . Matter . | . . . . . . . Time . | . . . . . . . Total Robot Build Rating . | . . . . . . . Part Schematics Acquired . | . . . . . . . Parts Built . | . . . . . . . Matter . | . . . . . . . Time . | . . . . . . . Total Part Build Rating . | . . . . . . . Parts Repaired . | . . . . . . . Time . | . . . . . . . Parts Recycled . | . . . . . . . Recycled Matter . | . . . . . . . Retrieved Matter . | . . . . . . . Retrieved Components 9 | . . . 9 . . . Parts Scanalyzed . | . . . . . . . Part Schematics Acquired . | . . . . . . . Parts Damaged . | . . . . . . . Bothacking | -11 -10 -10 -9 -9 -9 -8 ------------ Run | Scr Mat Min Mat Min Exi Min Used RIF Installer . | . . . . . . . Robots Hacked . | . . . . . . . Non-combat . | . . . . . . . Combat . | . . . . . . . Robot Hacks Applied . | . . . . . . . Relay Couplers Released . | . . . . . . . Robots Rewired . | . . . . . . . Allies Hacked . | . . . . . . . Hacks Repelled . | . . . . . . . Allies | -11 -10 -10 -9 -9 -9 -8 -------- Run | Scr Mat Min Mat Min Exi Min Total Allies 1 | . . 1 . . . . Largest Group 1 | . . 1 . . . . Highest-Rated Group 31 | . . 31 . . . . Highest-Rated Ally 31 | . . 31 . . . . Total Orders . | . . . . . . . Ally Attacks 6 | . . 6 . . . . Total Damage 130 | . . 130 . . . . Kills 2 | . . 2 . . . . Allies Corrupted . | . . . . . . . Allies Melted . | . . . . . . . Intel | -11 -10 -10 -9 -9 -9 -8 ------- Run | Scr Mat Min Mat Min Exi Min Robot Analysis Total 1 | . . . 1 . . . Derelict Logs Recovered 1 | . . 1 . . . . Drone Launches . | . . . . . . . Drone Recoveries . | . . . . . . . Exploration | -11 -10 -10 -9 -9 -9 -8 ------------- Run | Scr Mat Min Mat Min Exi Min Turns Passed 5072 | 64 1037 272 1644 384 1549 122 Spaces Moved 2779 | 43 474 237 965 214 828 18 Core 2 | 2 . . . . . . Treads 1138 | . 358 . 301 88 373 18 Legs . | . . . . . . . Wheels 1639 | 41 116 237 664 126 455 . Hover . | . . . . . . . Flight . | . . . . . . . Fastest Speed 50 | 50 80 110 100 110 100 200 Average Speed 142 | 78 152 110 131 138 160 200 Slowest Speed 200 | 80 180 110 180 180 200 200 Overloaded Moves . | . . . . . . . Propulsion Burnouts . | . . . . . . . Robots Hopped . | . . . . . . . Cave-ins Triggered . | . . . . . . . Exploration Rate (%) 43 | 3 61 41 79 53 59 6 Regions Visited 6 Branch Regions 4 Pre-discovered Areas 2 | . . 1 . . 1 . Known Exits Taken . | . . . . . . . Unknown Exits Taken 6 | 1 1 1 1 1 1 . Scrap Searched 1 | . . 1 . . . . Spaces Dug 15 | . . . 5 5 . 5 Terrain Destroyed 97 | . 1 . 34 35 21 6 Melee 10 | . . . . 5 . 5 Projectile 2 | . 1 . . . . 1 AOE 85 | . . . 34 30 21 . Actions | -11 -10 -10 -9 -9 -9 -8 --------- Run | Scr Mat Min Mat Min Exi Min Total 3478 | 61 648 241 1201 266 996 65 Wait 211 | . 87 1 90 21 . 12 Move 2773 | 42 473 236 964 213 827 18 Hop . | . . . . . . . Pick Up 111 | 5 9 . 30 3 64 . Fast Attach 17 | 7 2 . 3 . 5 . Attach 29 | . 3 . 3 . 16 7 Detach 8 | . . . 1 . 6 1 Swap 48 | . 6 . 21 14 5 2 Drop 47 | . 3 . 17 1 26 . Fire 177 | 7 64 4 71 7 22 2 Melee 55 | . . . . 7 25 23 Ram 1 | . . . 1 . . . Kick . | . . . . . . . Crush 1 | . 1 . . . . . Escape Stasis . | . . . . . . . Rewire . | . . . . . . . Trap . | . . . . . . . Miscellaneous . | . . . . . . . Route ------- -11/Scrapyard -10/Materials (discovered 3 exits: *Mat x2 / [*Min]) -10/Mines -9/Materials (discovered 4 exits: [*Mat x2] / [*Min x2]) -9/Mines (discovered 2 exits: [*Mat] / *Exi) -9/Exiles -8/Mines History --------- Turn | Location | Event 15 | -11/Scrapyard | Discovered new exit (range 15) 65 | -11/Scrapyard | Entered Materials 307 | -10/Materials | Build established: Mutant 317 | -10/Materials | Discovered new exit (range 16) 460 | -10/Materials | Discovered new exit (range 13) 547 | -10/Materials | Core integrity fell below 50% 600 | -10/Materials | Lost 3 parts (3w) 865 | -10/Materials | Discovered new exit (range 16) 1102 | -10/Materials | Entered Mines 1121 | -10/Mines | Core integrity fell below 20% 1163 | -10/Mines | Escorted by a lone wolf Derelict 1205 | -10/Mines | Learned location of Storage (-8) 1367 | -10/Mines | Discovered new exit (range 8) 1374 | -10/Mines | Entered Materials 1374 | -9/Materials | Evolved 2 slots: Utility x2 1659 | -9/Materials | Discovered new exit (range 11) 1931 | -9/Materials | Discovered new exit (range 16) 1939 | -9/Materials | Build established: Hauler-Mutant 2356 | -9/Materials | Discovered new exit (range 15) 2814 | -9/Materials | Discovered new exit (range 15) 3018 | -9/Materials | Entered Mines 3019 | -9/Mines | Assembled infested the area 3095 | -9/Mines | Discovered new exit (range 7) 3231 | -9/Mines | Received a Rocket Launcher from a helpful Derelict 3397 | -9/Mines | Deemed a non-threat by the Exiles lab entrance 3397 | -9/Mines | Discovered new exit (range 5) 3402 | -9/Mines | Entered Exiles 3472 | -9/Exiles | Met 8R-AWN 3489 | -9/Exiles | Met EX-HEX 3522 | -9/Exiles | Met EX-BIN 3537 | -9/Exiles | Met EX-DEC 3542 | -9/Exiles | Learned location of Zion (-6) 3985 | -9/Exiles | Discovered new exit (range 14) 4458 | -9/Exiles | Attacked by the Exiles 4571 | -9/Exiles | Lost 5 parts (1p1n1u2w) 4574 | -9/Exiles | Core integrity fell below 50% 4583 | -9/Exiles | Destroyed 8R-AWN 4601 | -9/Exiles | Found Prototype Protection 4612 | -9/Exiles | Found Prototype Processor 4630 | -9/Exiles | Found Prototype Ballistic Gun 4637 | -9/Exiles | Found Prototype Ballistic Gun 4640 | -9/Exiles | Found Prototype Device 4885 | -9/Exiles | Build established: Scavenger-Mutant 4914 | -9/Exiles | Identified 8R-AWN's Boregun (x2) 4951 | -9/Exiles | Entered Mines 5013 | -8/Mines | NK-0LA came to Exiles' defense 5038 | -8/Mines | Identified 8R-AWN's Armor/EX 5050 | -8/Mines | System corruption reached 10% 5066 | -8/Mines | Core integrity fell below 20% 5073 | -8/Mines | Destroyed by NK-0LA with NK-0LA's Tesla Doomcannon Last Messages --------------- 05040_ K-01 Serf collects debris. 05041_ Wheel destroyed. 05045_ K-01 Serf collects debris. 05055_ 8R-AWN's Armor/EX destroyed. 05061_ Wheel destroyed. 05063_ K-01 Serf collects debris. 05063_ Humpback destroyed. 05066_ K-01 Serf collects debris. 05067_ Chain reaction triggered in Lgt. Ion Engine. 05067_ K-01 Serf destroyed. 05067_ Katana destroyed. 05070_ System corrupted: 8R-AWN's Boregun targeting data glitched. 05070_ HV Slug penetrates NK-0LA. 05070_ NK-0LA suffers critical hit. 05070_ Destroyed Prototype Leg. 05070_ HV Slug penetrates Wall. 05070_ HV Slug penetrates NK-0LA. 05070_ NK-0LA suffers critical hit. 05070_ HV Slug penetrates Wall. 05073_ System corrupted: Matter fused (-2). Map ----- +----------------------------------------------------+ | | | | | | | | | | | | | | | | | | | | | ?????????????????????????????????? | | ?????????????????????????????????? | | ?????????????????????????????????? | | ?????????????????????????????????? | | ???##????##??????????????????????? | | ???# #### #??????????????????????? | | ????#"##"#???????????????????????? | | ????## ##???????????????????????? | | ????# ##??????????????????????? | | ???## ######?????????????????? | | ??## #?????????????????? | | ??# ##### #?????????????????? | | ??# ####?#???????????????????? | | ??## ##;;;#;# #######???????????? | | ???#### x u ????????? | | ?????## @% r ????????? | | ??????# ;;;#######??????????????? | | ??????# ####????????????????????? | | ??????# #???????????????????????? | | ??????# #???????????????????????? | | ??????# ???????????????????????? | | ?????? ???????????????????????? | | ?????? ???????????????????????? | | ?????#####???????????????????????? | | ?????????????????????????????????? | | ?????????????????????????????????? | | ?????????????????????????????????? | | ?????????????????????????????????? | | ?????????????????????????????????? | | ?????????????????????????????????? | | ?????????????????????????????????? | | ?????????????????????????????????? | | ?????????????????????????????????? | | ?????????????????????????????????? | | ?????????????????????????????????? | | ?????????????????????????????????? | | ?????????????????????????????????? | | ?????????????????????????????????? | | ?????????????????????????????????? | | ?????????????????????????????????? | +----------------------------------------------------+ Best States ------------- Heat Dissipation 28 Energy Generation 12 Energy Capacity 265 Matter Stores 300 Matter Capacity 300 Sight Range 16 Terrain Scan Density 10 Armor Coverage 1000 Resistance: EX 90 Evasion (%) 44 Melee Accuracy 5 Recoil Reduction 2 Item Schematics ----------------- None Robot Schematics ------------------ None Fabricated ------------ Nothing Alien Tech Used ----------------- None Achievements -------------- None Challenges ------------ None Game ------ Seed CouplerInsulatedCorpse Manual? 0 Play Time 00:39:42 Cumulative 975.0 hours Start 2020.03.21 @ 00:34:14 End 2020.03.21 @ 01:26:17 Sessions 1 Manual Loads 0 Difficulty Rogue Special Mode None Game No. 369 Rogue 369 Adventurer 0 Explorer 0 Win Type - Total 24 Types 13/1/7/0/0/0/3 Lore% 96 Gallery% 97 Achievement% 83 Wizard Run 0 Options --------- ASCII 0 Keyboard 0 Movement Vi Keybinds 0 Fullscreen 0 Font 12/Crisp Map View 76x50 Tactical HUD 1 Map Filters NONE Filters NONE Steam 1 RUN: 3bf23fad-2889-4b85-a886-308df30ad0b0